Cogmind - Beta 16 @@@ ROGUE MODE // 2025.12.24 @ 14:53:07 Player: Andru7428 Result: Destroyed by P-60 Hacker with Shock Rifle Performance ------------- Evolutions (3) 1500 Regions Visited (11) 2200 Robots Destroyed (256) 1280 Value Destroyed (9334) 9334 Prototype IDs (12) 240 Alien Tech Used (0) 0 Bonus (-1259) -1259 TOTAL SCORE: 13295 Bonus ------- High Alert Combat Kills 711 Follower Combat Kills 396 Entered Garrisons 600 Used RIF Installer 1500 Friendly Fire -4466 Cogmind --------- Core Integrity 0/700 Matter 36/300 Energy 300/300 System Corruption 30% Temperature Cool (0) Movement Treading (240) Ox1 Location -7/Garrison Parts ------- > --- POWER (1) -------- Enhanced Nuclear Core > --- PROPULSION (3) --- Improved Heavy Treads (fused) > --- UTILITY (7) ------ Huge Storage Unit Improved Signal Interpreter Relay Coupler [Sentry] (21) > --- WEAPON (2) ------- Maul > --- INVENTORY (25) --- Deuterium Engine Armored Huge Wheel Improved Sensor Array Transmission Jammer EM Disruption Field Relay Coupler [NC] (33) Relay Coupler [Swarmer] (26) Relay Coupler [Sentry] (18) Relay Coupler [Specialist] (25) Relay Coupler [Hunter] (15) Relay Coupler [Behemoth] (10) Precision Shock Rifle Precision Shock Rifle Precision Shock Rifle Proton Cannon Plasma Cannon Rocket Array Rocket Array Improved Datajack Remote Datajack Plasma Cutter Peak State ------------ > --- POWER ------------ Enhanced Nuclear Core > --- PROPULSION ------- Improved Heavy Treads Armored Wheel > --- UTILITY ---------- Huge Storage Unit Improved Signal Interpreter Advanced Targeting Computer Core Analyzer Improved Medium Armor Plating Improved Medium Armor Plating Improved Medium Armor Plating > --- WEAPON ----------- Precision Assault Rifle Precision Assault Rifle > --- INVENTORY -------- Deuterium Engine Improved Heavy Treads Compact Matter Pod Improved Sensor Array Improved Medium Armor Plating Focal Shield EM Disruption Field Relay Coupler [NC] Relay Coupler [NC] Relay Coupler [NC] Relay Coupler [Swarmer] Relay Coupler [Grunt] Relay Coupler [Grunt] Relay Coupler [Sentry] Relay Coupler [Hunter] Relay Coupler [Behemoth] Improved Trap Extractor Improved EM Pulse Cannon Rocket Array Rocket Array Improved Datajack Remote Datajack Plasma Cutter [Rating: 63] Favorites ----------- Power Enhanced Nuclear Core Engine Heavy Ion Engine Power Core Enhanced Nuclear Core Propulsion Light Treads Treads Light Treads Leg Aluminum Leg Wheel Armored Wheel Utility Improved Light Armor Plating Device Improved Sensor Array Storage Huge Storage Unit Processor Improved Signal Interpreter Hackware Relay Coupler [Sentry] Protection Improved Light Armor Plating Weapon Improved Assault Rifle Energy Gun Improved EM Shotgun Energy Cannon Improved EM Pulse Cannon Ballistic Gun Improved Assault Rifle Ballistic Cannon Bore Cannon Launcher Rocket Array Special Weapon Remote Datajack Impact Weapon Great Maul Special Melee Weapon Improved Datajack Build | -11 -10 -9 -9 -9 -9 -7 -7 -7 -7 -7 -7 ------- Run | Yrd Mat Mat Sto Gar Rec Fac Was Fac Gar Fac Gar Slots Evolved 6 | . . 2 . . . 4 . . . . . Power . | . . . . . . . . . . . . Propulsion 1 | . . . . . . 1 . . . . . Utility 5 | . . 2 . . . 3 . . . . . Weapon . | . . . . . . . . . . . . Parts Attached 155 | 7 12 27 12 10 . 37 6 9 11 18 6 Power 11 | 1 . 3 1 . . 3 . . 2 1 . Engine 6 | 1 . 1 1 . . 2 . . 1 . . Core 5 | . . 2 . . . 1 . . 1 1 . Reactor . | . . . . . . . . . . . . Propulsion 32 | 2 3 6 5 3 . 6 3 2 1 . 1 Treads 23 | 2 . 5 5 3 . 3 3 . 1 . 1 Leg 4 | . 3 1 . . . . . . . . . Wheel 5 | . . . . . . 3 . 2 . . . Hover . | . . . . . . . . . . . . Flight . | . . . . . . . . . . . . Utility 62 | 2 4 8 1 3 . 17 3 3 7 11 3 Device 18 | 1 . 4 . . . 7 1 1 1 3 . Storage 4 | 1 2 . . . . 1 . . . . . Processor 5 | . . . . . . 4 . . . 1 . Hackware 10 | . . . . . . 2 . . 2 4 2 Protection 25 | . 2 4 1 3 . 3 2 2 4 3 1 Artifact . | . . . . . . . . . . . . Weapon 50 | 2 5 10 5 4 . 11 . 4 1 6 2 Energy Gun 9 | . 3 1 1 . . 1 . . . 1 2 Energy Cannon 5 | . . 2 . . . . . . . 3 . Ballistic Gun 22 | 2 2 6 3 4 . 5 . . . . . Ballistic Cannon 2 | . . . . . . . . 2 . . . Launcher 3 | . . . 1 . . 1 . . 1 . . Special Weapon 4 | . . . . . . 1 . 2 . 1 . Impact Weapon 3 | . . 1 . . . 1 . . . 1 . Slashing Weapon . | . . . . . . . . . . . . Piercing Weapon . | . . . . . . . . . . . . Special Melee Weapon 2 | . . . . . . 2 . . . . . Unidentified Prototypes 8 | . . 3 1 . . 3 . . 1 . . Parts Lost 42 | . 3 3 1 2 . 11 . . 7 9 6 Power 4 | . . . 1 . . 2 . . 1 . . Propulsion 9 | . 2 . . . . 4 . . 1 1 1 Utility 21 | . 1 3 . 1 . 4 . . 2 6 4 Weapon 8 | . . . . 1 . 1 . . 3 2 1 Highest Loss Streak 4 | . 2 1 1 1 . 2 . . 2 4 4 To Critical Strikes . | . . . . . . . . . . . . Average Backups 18 | 5 9 13 14 14 15 22 24 23 22 22 22 Power . | . 1 1 . . . 1 1 1 . 1 1 Propulsion 1 | 3 2 1 2 2 2 1 1 1 1 1 1 Utility 7 | . 3 3 4 5 5 9 12 10 12 10 8 Weapon 6 | . 2 6 6 5 6 7 7 6 4 6 7 Tool/Special . | . . . . . . . . . . . . Unused Backups 49 | . 5 9 4 2 . 7 3 1 5 3 10 Power 2 | . . 1 . . . 1 . . . . . Propulsion 10 | . 3 1 4 . . . . . 1 . 1 Utility 24 | . 1 1 . 2 . 3 2 1 4 2 8 Weapon 10 | . 1 5 . . . 2 1 . . 1 . Tool/Special 3 | . . 1 . . . 1 . . . . 1 Average Slot Usage (%) 93 | . 98 98 98 99 100 92 91 92 89 86 79 Engine 4 | . 14 7 5 11 11 3 . . . . . Core 4 | . . 3 5 . . 2 7 7 6 7 7 Treads 12 | . 4 16 22 22 22 14 14 8 1 7 7 Leg 2 | . 23 5 . . . . . . . . . Wheel 3 | . . . . . . 7 1 6 12 4 . Device 5 | . 11 19 . . . 6 . 6 1 6 2 Storage 8 | . 14 11 11 11 11 7 7 7 7 7 7 Processor 8 | . . . . . . 8 23 23 21 7 7 Hackware 5 | . . . . . . 6 7 7 5 15 14 Protection 16 | . . 11 32 32 33 16 13 7 14 11 15 Energy Gun 1 | . 9 . . . . 1 . . . . 2 Ballistic Gun 10 | . 18 19 17 18 22 6 7 1 11 4 4 Impact Weapon 2 | . . . 4 3 . 4 7 3 . 2 1 Peak Build Rating 63 | 7 9 24 26 26 26 50 60 59 63 61 62 Average Rating 39 | 5 7 18 24 24 26 42 55 56 55 56 57 On Entrance 32 | . 7 8 24 24 26 26 46 57 58 58 57 Avg Prop Armor Cover (%) 4 | . 8 . . . . 5 11 8 2 2 . Naked Turns . | . . . . . . . . . . . . Heaviest Build 129 | 13 31 42 44 44 43 129 105 117 120 121 126 Greatest Support 90 | 40 40 40 46 46 46 66 90 90 75 75 75 Greatest Overweight (x) 10 | . 1 1 . 1 . 10 4 4 2 1 1 Average Overweight (x) 1 | . . . . . . 2 1 2 1 1 1 Largest Inventory Capacity 25 | 8 15 15 15 15 15 25 25 25 25 25 25 Average Capacity 20 | 7 11 14 15 15 15 22 25 25 25 25 25 Most Carried 25 | 6 15 15 15 15 15 25 25 25 25 25 25 Average Carried 19 | 5 9 13 14 14 15 22 24 24 24 23 23 Final Capacity 25 | 8 10 15 15 15 15 25 25 25 25 25 25 Final Carried 25 | 6 10 15 15 15 15 24 25 25 24 25 22 Class Distribution -------------------- 55% | Bothacker-Mutant 33% | Mutant 8% | Scavenger-Mutant Dominant Class ---------------- Mutant | -10/Materials Scavenger-Mutant | -9/Materials Mutant | -9/Storage Mutant | -9/Garrison Mutant | -9/Recycling Bothacker-Mutant | -7/Factory Bothacker-Mutant | -7/Waste Bothacker-Mutant | -7/Factory Bothacker-Mutant | -7/Garrison Bothacker-Mutant | -7/Factory Bothacker-Mutant | -7/Garrison Resources | -11 -10 -9 -9 -9 -9 -7 -7 -7 -7 -7 -7 ----------- Run | Yrd Mat Mat Sto Gar Rec Fac Was Fac Gar Fac Gar Matter Collected 7215 | 310 356 675 931 715 11 1186 187 637 1301 647 259 Remotely . | . . . . . . . . . . . . Salvage Created 11426 | 132 525 1453 1341 1068 . 1647 1348 850 1791 897 374 Parts 573 | 11 22 95 76 73 . 77 27 56 71 36 29 Haulers Intercepted 16 | . 1 5 6 . . 2 . 2 . . . Recyclers Shooed 5 | . 1 2 . . . . . . . 2 . Parts Field Recycled . | . . . . . . . . . . . . Retrieved Matter . | . . . . . . . . . . . . Parts Self-Destructed . | . . . . . . . . . . . . Prevented . | . . . . . . . . . . . . Parts Restored . | . . . . . . . . . . . . Kills | -11 -10 -9 -9 -9 -9 -7 -7 -7 -7 -7 -7 ------- Run | Yrd Mat Mat Sto Gar Rec Fac Was Fac Gar Fac Gar Combat Hostiles Destroyed 188 | . 9 27 21 28 . 32 . 14 28 15 14 Melee 12 | . . . . 2 . 4 . . . 4 2 Guns 101 | . 9 19 17 21 . 18 . . 11 3 3 Cannons 31 | . . 8 . . . . . 12 9 2 . AOE 30 | . . . 3 5 . 5 . 1 8 . 8 Classes Destroyed 17 | 2 3 3 1 3 . 3 1 . . . 1 Worker 4 | . . . . . . 2 . 1 . 1 . Builder 3 | . . 1 . . . 1 . 1 . . . Tunneler 7 | 4 . . . . . 1 . 2 . . . Hauler 16 | . 1 5 6 . . 2 . 2 . . . Recycler 8 | 1 1 2 2 . . . . 1 . 1 . Mechanic 1 | . . . 1 . . . . . . . . Operator 1 | . . . . . . 1 . . . . . Watcher 6 | . 1 2 1 . . . . 1 1 . . Swarmer 30 | . . 9 4 3 . 2 . 2 6 . 4 Cutter 3 | . . . . . . . . . . . 3 Grunt 93 | . 9 13 6 21 . 15 . 5 16 5 3 Brawler 3 | . . . . 1 . . . . 1 1 . Duelist 6 | . . . . 1 . 3 . . 1 1 . Sentry 28 | . . 5 11 2 . 3 . 2 3 2 . Hunter 9 | . . . . . . 3 . 1 1 3 1 Programmer 20 | . . . . 2 . 6 . 4 1 4 3 Surgeon 2 | . . . . . . . 2 . . . . Wasp 2 | . . . . . . . 2 . . . . Thug 12 | . . . . . . . 12 . . . . Butcher 1 | . . . . . . . 1 . . . . Martyr 1 | . . . . . . . 1 . . . . Best Kill Streak 11 | 3 3 5 8 5 . 11 . 3 10 2 4 Combat Bots Only 10 | . 3 5 7 5 . 9 . 2 10 2 4 Max Kills in Single Turn 5 | 1 1 2 3 2 . 4 1 3 5 1 4 Gunslinging 1 | . . . 1 . . 1 . . . . . Exploded 4 | . . . 3 2 . 4 . 1 4 . 4 Melee 1 | . . . . 1 . 1 . . . 1 1 Uniques/NPCs Destroyed . | . . . . . . . . . . . . Combat | -11 -10 -9 -9 -9 -9 -7 -7 -7 -7 -7 -7 -------- Run | Yrd Mat Mat Sto Gar Rec Fac Was Fac Gar Fac Gar Hostile Shots Fired 1279 | . 48 85 126 87 . 328 . 60 162 181 202 Missed 380 | . 14 19 36 23 . 101 . 22 55 54 56 Hits 899 | . 34 66 90 64 . 227 . 38 107 127 146 Melee 25 | . . . . 3 . 3 . 2 2 9 6 Projectile 874 | . 34 66 90 61 . 224 . 36 105 118 140 AOE 1 | . . . . . . . . . . 1 . Critical Strikes 32 | . 1 . 4 3 . 8 . . 1 7 8 Part Disruptions 1 | . . . . . . . . . . . 1 Damage Taken 12059 | . 626 917 1249 915 . 2919 . 549 1327 1811 1746 Core 1101 | . 77 121 100 94 . 240 . 95 85 153 136 Absorbed by Shields 946 | . . 85 . . . 92 . . 86 . 683 Redirected to Shielding 50 | . . 50 . . . . . . . . . Regen/Repaired (Parts) 502 | . . . 409 . . . 93 . . . . Core Remaining (%) 63 | 100 69 . . . 21 . . . . . . Volleys Fired 629 | 20 50 73 97 60 . 71 8 41 92 70 47 Largest 2 | 2 2 2 2 2 . 2 1 2 2 2 2 Hottest 124 | 40 85 76 46 50 . 90 28 96 96 124 110 Shots Fired 1123 | 40 99 146 194 115 1 137 8 67 171 88 57 Gun 922 | 40 99 121 193 109 1 134 8 . 134 40 43 Cannon 162 | . . 25 . . . . . 64 32 37 4 Launcher 14 | . . . 1 6 . 2 . . 2 . 3 Special 25 | . . . . . . 1 . 3 3 11 7 Kinetic 935 | 40 67 121 193 109 1 104 8 64 166 33 29 Thermal 42 | . 32 . . . . . . . . 6 4 Explosive 14 | . . . 1 6 . 2 . . 2 . 3 Electromagnetic 107 | . . 25 . . . 30 . . . 38 14 Robot Hit Streak 52 | 12 6 15 16 17 . 14 11 3 52 12 18 Robot Miss Streak 4 | 2 3 4 4 3 . 4 2 3 2 3 4 Penetration Max 2 | . . . . . . . . 1 2 . . Secondary Targets 15 | . . 2 3 3 . 5 . . 1 1 . Max Gunslinging Chain 1 | . . 1 1 1 . 1 . . 1 1 . Shots Hit Robots 905 | 26 62 92 150 80 . 137 35 40 147 86 50 Core Hits 439 | 9 30 46 46 43 . 77 8 23 107 21 29 Critical Kills 26 | . 1 . 2 1 . 2 . 14 4 2 . Critical Parts Destroyed 47 | . 1 . 2 . . 5 8 15 10 4 2 Critical Strikes 77 | . 4 . 4 1 . 7 8 29 15 7 2 Burn 2 | . 2 . . . . . . . . . . Destroy 49 | . 2 . 4 1 . . . 27 15 . . Corrupt 1 | . . . . . . . . . . 1 . Smash 25 | . . . . . . 7 8 2 . 6 2 Melee Attacks 225 | . . 3 16 22 . 69 29 18 7 46 15 Impact 207 | . . 3 16 22 . 62 29 18 . 42 15 Slashing . | . . . . . . . . . . . . Piercing . | . . . . . . . . . . . . Sneak Attacks 51 | . . . 2 1 . 14 27 2 3 2 . Combat Hostiles 7 | . . . . 1 . 6 . . . . . Follow-up Attacks . | . . . . . . . . . . . . Damage Inflicted 24093 | 219 672 1653 2568 1974 . 4674 2935 1400 4125 2189 1684 Guns 11201 | 219 649 1203 2229 1208 . 1986 130 . 2154 714 709 Cannons 2749 | . . 428 . . . . . 880 851 527 63 Explosions 3271 | . . . 124 563 . 824 . 191 1117 . 452 Melee 6702 | . . . 211 203 . 1806 2805 329 . 932 416 Ramming 170 | . 23 22 4 . . 58 . . 3 16 44 Kinetic 11941 | 219 388 1203 2229 1208 . 1536 130 880 3005 584 559 Thermal 739 | . 261 . . . . 224 . 191 . . 63 Explosive 2856 | . . . 124 563 . 600 . . 1117 . 452 Electromagnetic 1685 | . . 428 . . . 450 . . . 657 150 Impact 6702 | . . . 211 203 . 1806 2805 329 . 932 416 Slashing . | . . . . . . . . . . . . Piercing . | . . . . . . . . . . . . Highest Corruption 30 | . . 4 4 6 6 6 1 4 9 19 30 Average Corruption 7 | . . 4 4 4 6 2 1 2 4 15 23 Corruption Purged 5 | . . . . . . 5 . . . . . Corruption Blocked . | . . . . . . . . . . . . Effects 354 | . . 5 42 47 5 29 4 27 41 112 42 Message Errors 80 | . . 1 10 9 1 6 1 7 11 25 9 Matter Fused 74 | . . 1 8 7 . 9 1 3 7 24 14 Heat Flow Errors 48 | . . 1 2 9 2 5 1 2 6 16 4 Energy Discharges 49 | . . 1 9 6 1 2 1 5 6 15 3 Parts Rejected 6 | . . . 2 . . 1 . . 1 2 . Parts Fused 7 | . . . . 1 . . . 2 . 1 3 Data Loss (minor) 39 | . . . 3 10 . 2 . 4 4 14 2 Data Loss (major) 17 | . . . 3 2 . 1 . 1 2 7 1 Misfires 14 | . . 1 2 2 1 1 . 1 2 2 2 Alerts 7 | . . . 2 . . 2 . 1 . 2 . Misdirections 3 | . . . . . . . . . . 2 1 Weapon Failures 10 | . . . 1 1 . . . 1 2 2 3 Overload Shots . | . . . . . . . . . . . . Overflow Damage 2415 | . . 1 1 32 . 597 1289 181 4 235 75 Projectiles 114 | . . 1 . . . . 109 4 . . . Explosions 27 | . . . . 6 . 17 . . 4 . . Melee 2274 | . . . 1 26 . 580 1180 177 . 235 75 Knockbacks 52 | . . . . . . 3 19 14 5 8 3 Impact 31 | . . . . . . 3 16 1 . 8 3 Kinetic 16 | . . . . . . . . 12 4 . . Secondary 5 | . . . . . . . 3 1 1 . . Self-Inflicted Damage 470 | . . . 2 21 . 72 . . 154 . 221 Shots 18 | . . . 1 1 . 1 . . 6 . 9 Rammed 21 | . 2 3 2 . . 2 . . 1 2 9 Targets Rammed 29 | . 6 7 2 . . 2 . . 1 2 9 Kicked 7 | . 4 3 . . . . . . . . . Crushed 1 | . . 1 . . . . . . . . . Highest Temperature 344 | . 276 143 201 326 283 311 275 344 216 270 198 Average Temperature 80 | . 81 51 74 87 115 78 138 70 54 94 76 Received Heat Transfer 2842 | . 258 159 447 231 . 958 . 75 306 216 192 Effects 5 | . 1 . . 4 . . . . . . . Energy Bleed 4 | . 1 . . 3 . . . . . . . Damage (minor) 1 | . . . . 1 . . . . . . . Siege Activations . | . . . . . . . . . . . . Martial Activations . | . . . . . . . . . . . . Shielding Activations . | . . . . . . . . . . . . Robots Disrupted . | . . . . . . . . . . . . Combat Hostiles . | . . . . . . . . . . . . Robots Corrupted 27 | . . . 1 . . 7 10 2 . 6 1 Combat Hostiles 14 | . . . 1 . . 5 . 1 . 6 1 Parts Fried 56 | . . 2 . 1 . 14 25 3 . 10 1 Impact Corruptions 65 | . . . 1 1 . 18 29 4 . 10 2 Robots Melted . | . . . . . . . . . . . . Combat Hostiles . | . . . . . . . . . . . . Parts Melted 7 | . 3 . . . . . . 1 2 . 1 Heat Transferred 1207 | . 757 . . . . 200 . 150 . . 100 Parts Sabotaged . | . . . . . . . . . . . . Parts Stolen . | . . . . . . . . . . . . Parts Stripped . | . . . . . . . . . . . . Power Chain Reactions 2 | . . . . . . 2 . . . . . Alert | -11 -10 -9 -9 -9 -9 -7 -7 -7 -7 -7 -7 ------- Run | Yrd Mat Mat Sto Gar Rec Fac Was Fac Gar Fac Gar Maximum Alert Level 4 | . . 1 1 3 2 2 1 1 4 2 2 Low Security (%) 51 | 100 100 20 45 6 49 54 97 81 13 80 15 Level 1 22 | . . 79 54 18 . 15 2 18 3 8 20 Level 2 18 | . . . . 34 49 29 . . 45 10 64 Level 3 5 | . . . . 40 . . . . 17 . . Level 4 1 | . . . . . . . . . 20 . . Level 5 . | . . . . . . . . . . . . High Security . | . . . . . . . . . . . . Max Security . | . . . . . . . . . . . . Peak Influence 1122 | 5 90 399 314 1046 470 600 201 282 1122 588 585 Initial 588 | . . 31 121 79 470 14 201 . 157 588 91 Average 269 | 1 15 269 207 618 253 231 42 88 654 145 438 Influence Increases 7104 | 25 352 817 857 1087 15 1059 . 740 1085 523 544 Destroy 0b10 Robot/C 4000 | . 180 540 480 640 . 640 . 280 640 300 300 Destroy 0b10 Robot/NC 265 | 25 15 50 55 . . 35 . 40 35 10 . Destroy Leader 844 | . 44 134 166 20 . 194 . 96 70 90 30 Allied During Kill 126 | . . . 46 50 . . . . 28 1 1 Trap Triggered on 0b10 10 | . . . . . . 10 . . . . . Successful Hack 212 | . 23 12 19 14 15 59 . 18 14 38 . Select Force Hacks 90 | . 60 . . . . 30 . . . . . Disable Machine 165 | . . 15 45 . . . . 75 . 30 . Anti-Garrison Action 600 | . . . . 250 . . . . 250 . 100 Destroy Structure 297 | . . 6 16 83 . 46 . 36 18 39 53 Partial Spotted 60 | . . 15 30 . . . . 15 . . . Lose Combat Pursuer 435 | . 30 45 . 30 . 45 . 180 30 15 60 Influence Decreases 6529 | 25 278 603 1022 164 1026 517 577 515 188 1514 100 Entered New Map 1869 | . . 43 167 44 576 21 376 . 68 534 40 Time Decay 3055 | 25 253 530 583 . 150 416 201 337 . 560 . Search Patrol Dispatched 100 | . . . . . . . . 100 . . . Lost Part 355 | . 25 30 10 20 . 80 . . 70 60 60 Lost Ally 221 | . . . 11 100 . . . . 50 60 . Purge Threat 929 | . . . 251 . 300 . . 78 . 300 . Squads Dispatched 35 | . 4 3 2 . . 15 . 5 . 6 . Investigation 5 | . 2 2 . . . 1 . . . . . Extermination 14 | . . . . . . 6 . 3 . 5 . Reinforcement 14 | . 2 1 2 . . 6 . 2 . 1 . Assault . | . . . . . . . . . . . . Garrison 2 | . . . . . . 2 . . . . . Intercept . | . . . . . . . . . . . . Searches Triggered 1 | . . . . . . . . 1 . . . Construction Impeded 1 | . . . . . . 1 . . . . . Haulers Reinforced 3 | . . . . . . 2 . 1 . . . Active Scanning Responses . | . . . . . . . . . . . . Cargo Convoy Interrupts 1 | . . . . . . . . . . 1 . Stealth | -11 -10 -9 -9 -9 -9 -7 -7 -7 -7 -7 -7 --------- Run | Yrd Mat Mat Sto Gar Rec Fac Was Fac Gar Fac Gar Distress Signals 10 | . . 3 2 . . 2 . 2 1 . . Communications Jammed 9 | . . . . . . . . . . 9 . Distress Signals 9 | . . . . . . . . . . 9 . Times Spotted 287 | . 23 36 29 34 . 52 . 28 39 25 21 Peak Tracking Total 8 | . 4 6 8 4 . 6 . 5 8 4 6 Tactical Retreats 19 | . 2 1 . 2 . 3 . 6 1 1 3 Traps | -11 -10 -9 -9 -9 -9 -7 -7 -7 -7 -7 -7 ------- Run | Yrd Mat Mat Sto Gar Rec Fac Was Fac Gar Fac Gar Traps Triggered 27 | . 1 2 2 5 . 2 . 1 7 3 4 Indirectly . | . . . . . . . . . . . . Trap Hack Attempts 40 | . . . . . . 40 . . . . . Triggered . | . . . . . . . . . . . . Disarmed 5 | . 3 . . . . 2 . . . . . Reprogrammed 1 | . . . . . . 1 . . . . . Reused 1 | . . . . . . 1 . . . . . Traps Extracted 1 | . . . . . . 1 . . . . . Installed 1 | . . . . . . 1 . . . . . Triggered 1 | . . . . . . 1 . . . . . Most Traps Carried 1 | . . . . . . 1 . . . . . Machines | -11 -10 -9 -9 -9 -9 -7 -7 -7 -7 -7 -7 ---------- Run | Yrd Mat Mat Sto Gar Rec Fac Was Fac Gar Fac Gar Machines Disabled 17 | . . 1 3 1 . . . 5 3 2 2 Max in Single Turn 2 | . . 1 1 1 . . . 2 1 1 1 Garrison Access 2 | . . . . . . 1 . 1 . . . Garrison Relay 6 | . . . . 1 . . . . 3 . 2 Machines Repaired . | . . . . . . . . . . . . Machines Dismantled . | . . . . . . . . . . . . Machines Sabotaged . | . . . . . . . . . . . . Overloaded Fab Kills . | . . . . . . . . . . . . Hacking | -11 -10 -9 -9 -9 -9 -7 -7 -7 -7 -7 -7 --------- Run | Yrd Mat Mat Sto Gar Rec Fac Was Fac Gar Fac Gar Machines Accessed 65 | . 10 8 9 2 5 14 . 8 2 7 . Terminals 38 | . 7 6 6 2 5 6 . 2 2 2 . Fabricators 7 | . . . . . . 3 . 2 . 2 . Repair Stations 6 | . 1 . 2 . . 2 . 1 . . . Recycling Units 3 | . 2 1 . . . . . . . . . Scanalyzers 5 | . . 1 . . . 1 . 1 . 2 . Garrison Access 6 | . . . 1 . . 2 . 2 . 1 . Total Hacks 143 | . 23 16 24 3 14 28 . 13 4 18 . Successful 69 | . 14 4 16 1 6 10 . 8 1 9 . Failed 70 | . 8 11 8 2 8 17 . 5 3 8 . Catastrophic 17 | . . 3 3 1 1 6 . . 1 2 . Database Lockouts 4 | . 1 1 . . . 1 . . . 1 . Manual 76 | . 16 13 11 . 10 13 . 6 . 7 . Terminals 89 | . 19 13 15 3 14 12 . 4 4 5 . Fabricators 17 | . . . . . . 6 . 3 . 8 . Repair Stations 15 | . 2 . 8 . . 4 . 1 . . . Recycling Units 3 | . 2 1 . . . . . . . . . Scanalyzers 11 | . . 2 . . . 2 . 3 . 4 . Garrison Access 8 | . . . 1 . . 4 . 2 . 1 . Terminal Hacks 24 | . 6 1 6 1 4 2 . 1 1 2 . Part Schematic 1 | . . . . . 1 . . . . . . Robot Schematic 1 | . . . . . 1 . . . . . . Robot Analysis 1 | . 1 . . . . . . . . . . Prototype ID Bank 3 | . 2 . 1 . . . . . . . . Open Door 1 | . . . 1 . . . . . . . . Branch Access Points 1 | . . 1 . . . . . . . . . Emergency Access Points 1 | . . . . . . . . . 1 . . Alert Level 1 | . . . 1 . . . . . . . . Unreport Threat 7 | . . . 2 . 2 . . 1 . 2 . Locate Traps 3 | . 1 . . . . 2 . . . . . Disarm Traps 1 | . 1 . . . . . . . . . . Recall Reinforcements 1 | . . . 1 . . . . . . . . Hauler Manifests 1 | . 1 . . . . . . . . . . Patrol Navigation 1 | . . . . 1 . . . . . . . Fabricator Hacks 4 | . . . . . . 1 . 1 . 2 . Network Status 3 | . . . . . . 1 . 1 . 1 . Build 1 | . . . . . . . . . . 1 . Repair Station Hacks 9 | . 1 . 8 . . . . . . . . Scan Component 5 | . 1 . 4 . . . . . . . . Repair 4 | . . . 4 . . . . . . . . Recycling Unit Hacks 1 | . . 1 . . . . . . . . . Retrieve Components 1 | . . 1 . . . . . . . . . Scanalyzer 6 | . . 1 . . . 1 . 2 . 2 . Insert Component 1 | . . . . . . . . 1 . . . Retrieve Study 5 | . . 1 . . . 1 . 1 . 2 . Garrison Access Hacks 6 | . . . 1 . . 2 . 2 . 1 . Unlock Access 3 | . . . 1 . . . . 1 . 1 . Seal Access 2 | . . . . . . 1 . 1 . . . Coupler Status 1 | . . . . . . 1 . . . . . Unauthorized Hacks 19 | . 7 1 1 . 2 4 . 2 . 2 . Terminals 14 | . 5 1 1 . 2 2 . 1 . 2 . Assimilate 3 | . . . . . . . . 1 . 2 . Botnet 5 | . . 1 1 . 2 1 . . . . . Operators 1 | . . . . . . 1 . . . . . Skim 5 | . 5 . . . . . . . . . . Fabricators 1 | . . . . . . . . 1 . . . Fabnet 1 | . . . . . . . . 1 . . . Repair Stations 1 | . . . . . . 1 . . . . . Mechanics 1 | . . . . . . 1 . . . . . Recycling Units 2 | . 2 . . . . . . . . . . Tunnel 2 | . 2 . . . . . . . . . . Scanalyzers . | . . . . . . . . . . . . Garrison Access 1 | . . . . . . 1 . . . . . Eject 1 | . . . . . . 1 . . . . . Data Cores Recovered . | . . . . . . . . . . . . Used . | . . . . . . . . . . . . Hacking Detections 58 | . 8 8 8 2 5 13 . 7 2 5 . Full Trace Events 1 | . 1 . . . . . . . . . . Feedback Events . | . . . . . . . . . . . . Feedback Blocked . | . . . . . . . . . . . . Robot Schematics Acquired 1 | . . . . . 1 . . . . . . Robots Built . | . . . . . . . . . . . . Authchips . | . . . . . . . . . . . . Time . | . . . . . . . . . . . . Total Robot Build Rating . | . . . . . . . . . . . . Part Schematics Acquired 1 | . . . . . 1 . . . . . . Parts Built 2 | . . . . . . . . . . 2 . Authchips . | . . . . . . . . . . . . Time 95 | . . . . . . . . . . 95 . Total Part Build Rating 10 | . . . . . . . . . . 10 . Part Studies Acquired 5 | . . 1 . . . 1 . 1 . 2 . Parts Repaired 4 | . . . 4 . . . . . . . . Time 152 | . . . 152 . . . . . . . . Parts Recycled . | . . . . . . . . . . . . Recycled Matter . | . . . . . . . . . . . . Retrieved Matter . | . . . . . . . . . . . . Retrieved Components 9 | . . 9 . . . . . . . . . Parts Scanalyzed . | . . . . . . . . . . . . Part Schematics Acquired . | . . . . . . . . . . . . Parts Damaged . | . . . . . . . . . . . . Bothacking | -11 -10 -9 -9 -9 -9 -7 -7 -7 -7 -7 -7 ------------ Run | Yrd Mat Mat Sto Gar Rec Fac Was Fac Gar Fac Gar Used RIF Installer 3 | . . . . 2 . . . . 1 . . Structural Interface 1 | . . . . 1 . . . . . . . Program Shield 1 | . . . . . . . . . 1 . . Robots Hacked 26 | . . . . . . 6 . 2 6 10 2 Non-combat 9 | . . . . . . 3 . . 1 5 . Combat 17 | . . . . . . 3 . 2 5 5 2 Robot Hacks Applied 31 | . . . . . . 7 . 2 6 13 3 parse_system 1 | . . . . . . . . . 1 . . find_chute 1 | . . . . . . 1 . . . . . ignore_repairs 1 | . . . . . . 1 . . . . . map_walls 1 | . . . . . . . . . . 1 . drop_inventory 3 | . . . . . . . . . . 3 . find_recycling 2 | . . . . . . 1 . . . 1 . ignore_parts 1 | . . . . . . . . . . 1 . find_garrison 1 | . . . . . . . . . . 1 . spike_heat 1 | . . . . . . . . . . . 1 wipe_record 10 | . . . . . . 3 . 2 1 3 1 reboot_system 2 | . . . . . . . . . 1 1 . overwrite_iff 5 | . . . . . . 1 . . 1 2 1 formatsys_high 2 | . . . . . . . . . 2 . . Relay Couplers Released 26 | . . . . 3 . 7 . . 9 . 7 Ejected 4 | . . . . . . 4 . . . . . Machine Destruction 22 | . . . . 3 . 3 . . 9 . 7 Attached 10 | . . . . . . 2 . . 2 4 2 Fabnet Peak Effective % . | . . . . . . . . . . . . Robots Rewired 3 | . . . . . . . . . 3 . . Allies Hacked . | . . . . . . . . . . . . Hacks Repelled . | . . . . . . . . . . . . Allies | -11 -10 -9 -9 -9 -9 -7 -7 -7 -7 -7 -7 -------- Run | Yrd Mat Mat Sto Gar Rec Fac Was Fac Gar Fac Gar Total Allies 42 | . . . 10 . . 1 20 1 6 3 1 Largest Group 20 | . . . 10 7 . 1 20 2 2 3 1 Highest-Rated Group 554 | . . . 88 64 . 32 554 34 64 36 16 Highest-Rated Ally 35 | . . . 16 16 . 32 35 17 32 16 16 Total Orders . | . . . . . . . . . . . . Ally Attacks 130 | . . . 29 69 . 1 . . 16 10 5 Total Damage 1657 | . . . 307 615 . 49 . . 492 139 55 Kills 13 | . . . 4 4 . . . . 4 . 1 Allies Corrupted 11 | . . . . . . . 10 1 . . . Allies Melted . | . . . . . . . . . . . . Intel | -11 -10 -9 -9 -9 -9 -7 -7 -7 -7 -7 -7 ------- Run | Yrd Mat Mat Sto Gar Rec Fac Was Fac Gar Fac Gar Active Infowar (turns) 5856 | 17 1083 694 . . . 634 . 1401 . 1725 302 Sensors 3784 | . . . . . . 631 . 1401 . 1670 82 Seismic 1794 | 17 1083 694 . . . . . . . . . T.N.C. 3 | . . . . . . 3 . . . . . Jamming 1181 | . . . . . . . . . . 879 302 Robot Analysis Total 1 | . 1 . . . . . . . . . . Derelict Logs Recovered . | . . . . . . . . . . . . Drone Launches . | . . . . . . . . . . . . Drone Recoveries . | . . . . . . . . . . . . Exploration | -11 -10 -9 -9 -9 -9 -7 -7 -7 -7 -7 -7 ------------- Run | Yrd Mat Mat Sto Gar Rec Fac Was Fac Gar Fac Gar Turns Passed 18551 | 194 1305 1854 1900 2014 303 3071 995 1672 1560 2671 1012 Spaces Moved 8325 | 86 703 884 815 1026 190 1329 371 861 801 934 325 Core 10 | 10 . . . . . . . . . . . Treads 5500 | 76 104 704 815 1026 190 621 317 230 158 934 325 Legs 779 | . 599 180 . . . . . . . . . Wheels 2036 | . . . . . . 708 54 631 643 . . Hover . | . . . . . . . . . . . . Flight . | . . . . . . . . . . . . Fastest Speed 50 | 50 120 160 160 160 160 145 145 120 120 240 240 Average Speed 178 | 147 154 167 160 165 160 182 230 163 143 240 240 Slowest Speed 245 | 160 190 240 160 240 160 243 245 245 240 240 240 Overloaded Moves . | . . . . . . . . . . . . Propulsion Burnouts . | . . . . . . . . . . . . Robots Hopped . | . . . . . . . . . . . . Potential Cave-ins 2 | . . . . . . . . . . 2 . Cave-ins Triggered 1 | . . 1 . . . . . . . . . Exploration Rate (%) 58 | 7 90 56 89 85 51 36 96 24 92 30 51 Regions Visited 11 Branch Regions 2 Pre-discovered Areas 2 | . 2 . . . . . . . . . . Known Exits Taken 6 | . 1 1 1 . 1 . . 1 . 1 . Unknown Exits Taken 1 | 1 . . . . . . . . . . . Scrap Searched . | . . . . . . . . . . . . Spaces Dug 68 | . . 3 3 8 . 28 . 9 . 17 . Terrain Destroyed 271 | . . 3 14 52 . 45 . 34 12 48 63 Melee 65 | . . 3 3 8 . 28 . 9 . 14 . Projectile 16 | . . . . . . . . 11 2 3 . AOE 190 | . . . 11 44 . 17 . 14 10 31 63 Terrain Rammed . | . . . . . . . . . . . . Walls Destroyed . | . . . . . . . . . . . . Machines Disabled . | . . . . . . . . . . . . Actions | -11 -10 -9 -9 -9 -9 -7 -7 -7 -7 -7 -7 --------- Run | Yrd Mat Mat Sto Gar Rec Fac Was Fac Gar Fac Gar Total 10481 | 119 828 1109 1186 1189 189 1721 449 1016 1036 1188 451 Wait 591 | . 22 58 209 34 . 70 11 55 38 70 24 Move 8318 | 85 702 883 815 1025 189 1329 370 861 800 934 325 Hop . | . . . . . . . . . . . . Pick Up 143 | 7 18 24 6 7 . 40 6 4 15 14 2 Fast Attach 36 | 6 . 1 6 2 . 5 4 2 4 6 . Attach 48 | 1 3 4 1 4 . 16 . 1 7 10 1 Detach 10 | . . . . 1 . 4 1 2 . 2 . Swap 228 | . 13 30 20 21 . 54 4 26 25 19 16 Drop 125 | . 14 26 14 9 . 20 11 6 14 9 2 Fire 629 | 20 50 73 97 60 . 71 8 41 92 70 47 Melee 225 | . . 3 16 22 . 69 29 18 7 46 15 Ram 3 | . . . . . . 2 . . 1 . . Kick 7 | . 4 3 . . . . . . . . . Crush 19 | . 2 4 2 . . . . . . 2 9 Escape Stasis 50 | . . . . 4 . . . . 32 6 8 Rewire 8 | . . . . . . . 5 . 1 . 2 Trap 41 | . . . . . . 41 . . . . . Miscellaneous . | . . . . . . . . . . . . Route ------- -11/Scrapyard -10/Materials (discovered 6 exits: *Mat x3 / [*Min x2] / Sub) -9/Materials (discovered 6 exits: *Mat x3 / *Min / *Sto x2) -9/Storage (discovered 3 exits: *Mat / *Rec / Gar) -9/Garrison (discovered 3 exits: *Rec x3) -9/Recycling -7/Factory -7/Waste -7/Factory (discovered 2 exits: *Low / Gar) -7/Garrison (discovered 4 exits: *Fac x4) -7/Factory (discovered 4 exits: [*Fac x2] / *Low / Gar) -7/Garrison (discovered 1 exit: [*Fac]) History --------- Turn | Location | Event 28 | -11/Scrapyard | Discovered new exit (range 16) 195 | -11/Scrapyard | Entered Materials 239 | -10/Materials | Discovered new exit (range 15) 324 | -10/Materials | Build established: Mutant 628 | -10/Materials | Discovered new exit (range 3) 791 | -10/Materials | Discovered new exit (range 16) 867 | -10/Materials | Build established: Scavenger-Mutant 907 | -10/Materials | Central database locked down 918 | -10/Materials | Discovered new exit (range 3) 1003 | -10/Materials | Identified exit to Materials 1003 | -10/Materials | Identified exit to Subcaves 1034 | -10/Materials | Learned location of 2 exits from Subcaves 1056 | -10/Materials | Learned Materials stockpile data 1068 | -10/Materials | Learned Storage stockpile data 1069 | -10/Materials | Learned 4 Recycling zone layouts 1081 | -10/Materials | Learned 2 Storage zone layouts 1330 | -10/Materials | Build established: Mutant 1500 | -10/Materials | Entered another Materials area 1500 | -9/Materials | Evolved 2 slots: Utility x2 1501 | -9/Materials | Identified exit to Materials 2036 | -9/Materials | Discovered new exit (range 16) 2128 | -9/Materials | Build established: Scavenger-Mutant 2445 | -9/Materials | Discovered new exit (range 7) 2675 | -9/Materials | Central database locked down 2737 | -9/Materials | Identified exit to Mines 2737 | -9/Materials | Identified exit to Storage 3049 | -9/Materials | Crushed by falling debris 3113 | -9/Materials | Build established: Mutant 3354 | -9/Materials | Entered Storage 3502 | -9/Storage | Used back door to open Recycling access 3502 | -9/Storage | Discovered new exit (range 4) 3679 | -9/Storage | Repaired Imp. Light Armor Plating 3926 | -9/Storage | Destroyed 7 combat bots 3980 | -9/Storage | Core integrity fell below 50% 4091 | -9/Storage | Repaired Imp. Light Armor Plating 4744 | -9/Storage | Repaired Imp. Light Armor Plating 4783 | -9/Storage | Repaired Imp. Light Armor Plating 4865 | -9/Storage | Assisted by bots powering up and referring to "LRC-V3" 5175 | -9/Storage | Build established: Commander-Mutant 5204 | -9/Storage | Identified exit to Garrison 5254 | -9/Storage | Entered Garrison 5254 | -9/Garrison | Accompanied by 7 allies 5348 | -9/Garrison | Triggered checkpoint 5372 | -9/Garrison | Triggered checkpoint 5412 | -9/Garrison | Lost 4 allies 5616 | -9/Garrison | Triggered checkpoint 5628 | -9/Garrison | Discovered new exit (range 12) 5676 | -9/Garrison | Build established: Mutant 5679 | -9/Garrison | Lost 3 allies 5716 | -9/Garrison | Triggered checkpoint 6064 | -9/Garrison | Triggered checkpoint 6192 | -9/Garrison | Discovered new exit (range 10) 6334 | -9/Garrison | Triggered checkpoint 6351 | -9/Garrison | Discovered new exit (range 13) 6606 | -9/Garrison | Triggered checkpoint 6693 | -9/Garrison | Garrison Relay disabled 6785 | -9/Garrison | Installed Relay Interface Framework 7070 | -9/Garrison | Expanded RIF knowledge: Structural Interface 7268 | -9/Garrison | Entered Recycling 7269 | -9/Recycling | Identified exit to Factory 7571 | -9/Recycling | Entered Factory 7571 | -7/Factory | Evolved 4 slots: Propulsion x1, Utility x3 8019 | -7/Factory | Found Prototype Launcher 8019 | -7/Factory | Identified Rocket Array 8034 | -7/Factory | Found Rocket Array 8095 | -7/Factory | Garrison activated, responded to threat 8524 | -7/Factory | Build established: Bothacker-Mutant 9324 | -7/Factory | Destroyed 9 combat bots 9533 | -7/Factory | Central database locked down 10077 | -7/Factory | Discovered new exit (range 10) 10096 | -7/Factory | Identified exit to Lower Caves 10642 | -7/Factory | Sucked down chute 10642 | -7/Factory | Entered Waste 10643 | -7/Waste | Joined by Warlord forces that had cleared the area 11297 | -7/Waste | Discovered new exit (range 10) 11412 | -7/Waste | Identified exit to Factory 11637 | -7/Waste | Entered Factory 11637 | -7/Factory | Accompanied by 2 allies 11643 | -7/Factory | Murdered 16 allies 11970 | -7/Factory | Discovered exit to Lower Caves (range 11) 12072 | -7/Factory | P-60 Hacker assimilated allied 5N-STC(b) 12837 | -7/Factory | Search patrols dispatched 13309 | -7/Factory | Identified exit to Garrison 13309 | -7/Factory | Entered Garrison 13309 | -7/Garrison | Accompanied by 1 ally 13419 | -7/Garrison | Triggered checkpoint 13501 | -7/Garrison | Triggered checkpoint 13537 | -7/Garrison | Core integrity fell below 50% 13563 | -7/Garrison | Triggered checkpoint 13591 | -7/Garrison | Destroyed 10 combat bots 13698 | -7/Garrison | Discovered new exit (range 14) 13731 | -7/Garrison | Identified exit to Factory 13791 | -7/Garrison | Triggered checkpoint 13821 | -7/Garrison | Garrison Relay disabled 13855 | -7/Garrison | Triggered checkpoint 14196 | -7/Garrison | Discovered exit to Factory (range 7) 14255 | -7/Garrison | Triggered checkpoint 14272 | -7/Garrison | Garrison Relay disabled 14307 | -7/Garrison | Expanded RIF knowledge: Program Shield 14447 | -7/Garrison | Triggered checkpoint 14525 | -7/Garrison | Triggered checkpoint 14530 | -7/Garrison | Garrison Relay disabled 14597 | -7/Garrison | Triggered checkpoint 14649 | -7/Garrison | Discovered exit to Factory (range 6) 14738 | -7/Garrison | Discovered exit to Factory (range 8) 14869 | -7/Garrison | Entered Factory 14869 | -7/Factory | Accompanied by 3 allies 14999 | -7/Factory | Discovered new exit (range 10) 15016 | -7/Factory | Lost 3 allies 15144 | -7/Factory | Fabricated Proton Cannon (x2) 15482 | -7/Factory | System corruption reached 10% 15806 | -7/Factory | Lost 4 parts (3u1w) 16480 | -7/Factory | Discovered new exit (range 11) 16657 | -7/Factory | Cargo convoy interrupted 16769 | -7/Factory | Core integrity fell below 20% 16937 | -7/Factory | Discovered exit to Lower Caves (range 3) 17020 | -7/Factory | Found Powered Armor 17304 | -7/Factory | Central database locked down 17341 | -7/Factory | Found Powered Armor 17540 | -7/Factory | Identified exit to Garrison 17540 | -7/Factory | Entered Garrison 17581 | -7/Garrison | Garrison Relay disabled 17624 | -7/Garrison | Triggered checkpoint 17699 | -7/Garrison | Garrison Relay disabled 17845 | -7/Garrison | Triggered checkpoint 18259 | -7/Garrison | Discovered new exit (range 14) 18508 | -7/Garrison | Triggered checkpoint 18543 | -7/Garrison | System corruption reached 30% 18552 | -7/Garrison | Destroyed by P-60 Hacker with Shock Rifle Last Messages --------------- 18502_ RIF reveals location of hidden door. 18503_ Discarded Remote Datajack+. 18508_ Beams of light sweep through the air. An alarm sounds. 18513_ Powered Armor destroyed. 18523_ System corrupted: Imp. Heavy Treads fused. 18529_ RIF reveals location of phase wall. 18529_ Prc. Assault Rifle destroyed. 18534_ Powered Armor destroyed. 18536_ RIF reveals location of phase wall. 18537_ Relay Coupler [Grunt] destroyed. 18538_ MP/TNPMSF,RLH6ZEB9 &H%=9VA1VB0DUZTR4#PP6 18539_ P-60 Hacker suffers critical hit (Smash). 18539_ Destroyed Imp. Heat Sink. 18539_ P-60 Hacker system corrupted by crushing effect. 18541_ P-60 Hacker resets P-60 Hacker, system corruption cleaned. 18551_ P-60 Hacker knocked back. Map ----- +----------------------------------------------------+ | * #????????????????????????????????? | | #= # #### #????????????????????????????????? | | #*!= ##??# #????????????????????????????????? | | / ## #### #????????????????????????????????? | | ## ##[ #????????????????????????????????? | | # # ## *#????????????????????????????????? | | = #????????????????????????????????? | | #????????????????????????????????? | | # #########????????????????????????????????? | | # ### ##????????????????????????????????????? | | # #????????????????????????????????????? | | ####????????????????????????????????????? | | ########################????????????????? | | + + #????????????????? | | # ^####### ########## ## ## #????###?????????? | | #^^^#?????#+#???????##+##+##+#????+ +?????????? | | ???????????????#! #! #! #????# #?????????? | | ???????????????#! #! #! #?#+## ##+#??????? | | ##??????????????#! #! #! #?# # # #??????? | | # ##???????????????## ## ## #???!+ +!????????? | | # ??????????????##### ## ## ######+#?????????? | | # ??????????????+ g #?????????? | | # ??????????????# ######p######## #?????????? | | # ?????????????????????# #??????# #?????????? | | # ?????????????????????# #??????# #?????????? | | # ?????????????????????#@#?????? +?????????? | | # ?????????????????????#p#?????? +?????????? | | ???????????????????????? #?????? +?????????? | | ???????????????????????? #??????# #?????????? | | ???????????????????????# #??????# #?????????? | | ???????????????????????# #??????####?????????? | | ???????????????????????# #???????????????????? | | ???????????????????????+ +???????????????????? | | ???????????????????????# #???????????????????? | | ???????????????????????# ????????????????????? | | ???????????????????????# ????????????????????? | | ???????????????????????# ????????????????????? | | ???????????????????????# ????????????????????? | | ????????????????????????#+????????????????????? | | ??????????????????????????????????????????????? | | ??????????????????????????????????????????????? | | ??????????????????????????????????????????????? | | ??????????????????????????????????????????????? | | ??????????????????????????????????????????????? | | ??????????????????????????????????????????????? | | ??????????????????????????????????????????????? | | ??????????????????????????????????????????????? | | ??????????????????????????????????????????????? | | ??????????????????????????????????????????????? | | ??????????????????????????????????????????????? | +----------------------------------------------------+ Best States ------------- Heat Dissipation 61 Energy Generation 17 Energy Capacity 300 Matter Stores 300 Matter Capacity 300 Sight Range 16 Robot Scan Range 15 Terrain Scan Density 10 Jamming Range 12 Armor Coverage 1025 Weapon Shielding 33 Evasion (%) 55 Targeting Accuracy 28 Core Analysis 6 Recoil Reduction 3 Relay Coupler Types 3 Relay Coupler Value 58 Trap Extractor Capacity 6 Item Schematics ----------------- Hcp. Storage Unit | -9/Recycling | Hacked Robot Schematics ------------------ G-34 Mercenary | -9/Recycling | Hacked Fabricated ------------ Proton Cannon | x2 | -7/Factory | Preloaded Repaired ---------- Imp. Light Armor Plating | 16% | -9/Storage Imp. Light Armor Plating | 41% | -9/Storage Imp. Light Armor Plating | 54% | -9/Storage Imp. Light Armor Plating | 60% | -9/Storage Studied --------- Mni. Grenade Launcher | -9/Materials | Hacked Imp. Datajack | -7/Factory | Hacked Arm. Huge Wheel | -7/Factory | Hacked Remote Datajack | -7/Factory | Hacked Deuterium Engine | -7/Factory | Hacked Alien Tech Used ----------------- None Achievements -------------- Oppo Buddy Challenges ------------ None Game ------ Seed TractorHoverNullifier Manual? 0 Play Time 02:03:30 Cumulative 425.6 hours Start 2025.12.21 @ 20:01:04 End 2025.12.24 @ 14:53:07 Sessions 5 Manual Loads 0 Difficulty Rogue Special Mode None Game No. 259 Rogue 259 Adventurer 0 Explorer 0 Win Type - Total 12 Types 11/0/1/0/0/0/0/0/0/0 Lore% 80 Gallery% 76 Achievement% 54 Wizard Run 0 Options --------- Layout 1 ASCII 0 Keyboard 1 Movement Numpad Keybinds 0 Fullscreen 2 Font 24/Smallcaps Map View 50x35 Zoom Use 0% Tactical HUD 1 Map Filters NONE Filters NONE Steam 1 RUN: 6764e27f-1d0f-4083-a913-c0b619a3adbb